bitfinex-derivatives/quotes_SOLF0:USTF0_20241230
["timestamp","ask_amount","ask_price","bid_price","bid_amount"]
[1735601802972,2.6251,190.82,190.77,11.06877675]
[1735601803172,2.6251,190.82,190.77,8.44307675]
[1735601803473,2.6252,190.81,190.78,2.6256]
[1735601804273,8.44307675,190.84,190.78,2.6256]
[1735601804474,2.6251,190.82,190.78,2.6256]
[1735601806567,2.6251,190.82,190.77,11.06867675]
[1735601807072,8.44307675,190.84,190.77,11.06867675]
[1735601807277,8.44307675,190.82,190.76,1.96325564]
[1735601808568,2.6256,190.79,190.76,1.96325564]
[1735601816383,2.6257,190.78,190.76,1.96325564]
[1735601818183,2.6258,190.77,190.76,1.96325564]
[1735601818378,8.44307675,190.79,190.72,2.6264]
[1735601818775,2.6258,190.77,190.72,2.6264]
[1735601819277,8.44307675,190.79,190.72,2.6264]
[1735601819482,2.6259,190.76,190.72,2.6264]
[1735601821986,8.44307675,190.81,190.73,8.44307675]
[1735601822181,10.92507675,190.82,190.76,8.44307675]
[1735601822384,10.92507675,190.82,190.74,8.44307675]
[1735601822585,2.6254,190.8,190.74,8.44307675]
[1735601822983,8.44307675,190.8,190.74,8.44307675]
[1735601823183,2.6257,190.78,190.72,8.44307675]
[1735601823987,8.44307675,190.8,190.74,8.44307675]
[1735601824184,2.6255,190.8,190.76,8.44307675]
[1735601824382,2.6255,190.8,190.74,8.44307675]
[1735601824584,10.92507675,190.82,190.74,8.44307675]
[1735601824978,8.44307675,190.8,190.74,8.44307675]
[1735601825183,8.44307675,190.8,190.72,8.44307675]
[1735601825680,2.6259,190.77,190.73,2.6262]
[1735601826588,2.6259,190.77,190.74,2.6261]
[1735601826787,2.6259,190.77,190.74,11.06917675]
[1735601826990,2.6257,190.78,190.74,11.06917675]
[1735601827383,2.6257,190.78,190.75,2.626]
[1735601827583,2.6257,190.78,190.74,8.44307675]
[1735601827980,2.6257,190.78,190.74,11.06917675]
[1735601828185,2.6256,190.79,190.74,11.06917675]
[1735601828386,8.44307675,190.78,190.72,8.44307675]
[1735601828987,2.626,190.76,190.72,11.06937675]
[1735601829587,2.626,190.76,190.72,8.44307675]
[1735601829885,2.626,190.76,190.7,3.12]
[1735601830087,2.6261,190.75,190.7,3.12]
[1735601830291,2.6261,190.75,190.7,8.44307675]
[1735601831293,2.6261,190.75,190.71,2.6265]
[1735601833690,8.44307675,190.78,190.7,8.44307675]
[1735601833993,8.44307675,190.76,190.68,8.44307675]
[1735601834190,8.44307675,190.74,190.68,8.44307675]
[1735601834797,2.6266,190.72,190.68,8.44307675]
[1735601835394,8.44307675,190.74,190.68,8.44307675]
[1735601835395,2.6261,190.75,190.71,2.6265]
[1735601835594,8.44307675,190.76,190.68,8.44307675]
[1735601836298,2.6265,190.72,190.67,2.6271]
[1735601836499,8.44307675,190.74,190.67,2.6271]
[1735601836998,2.6266,190.71,190.67,2.6271]
[1735601840800,8.44307675,190.74,190.66,8.44307675]
[1735601841001,4.7866,190.75,190.66,8.44307675]
[1735601841002,8.44307675,190.72,190.66,8.44307675]
[1735601841690,2.6268,190.7,190.66,11.07027675]
[1735601841889,8.44307675,190.74,190.66,8.44307675]
[1735601842091,8.44307675,190.74,190.63,3.12]
[1735601842300,8.44307675,190.74,190.66,11.07027675]
[1735601843890,2.6265,190.72,190.66,11.07027675]
[1735601844100,8.44307675,190.74,190.66,11.07027675]
[1735601844394,8.44307675,190.74,190.66,2.6272]
[1735601844593,2.6268,190.7,190.66,2.6272]
[1735601845203,8.44307675,190.74,190.66,2.6272]
[1735601845901,2.6267,190.7,190.66,2.6272]
[1735601846095,8.44307675,190.74,190.66,2.6272]
[1735601846591,2.6267,190.71,190.66,2.6272]
[1735601847294,2.6267,190.7,190.66,2.6272]
[1735601851404,8.44307675,190.72,190.65,8.44307675]
[1735601851705,2.6266,190.71,190.67,2.6271]
[1735601854596,2.6268,190.7,190.67,2.6271]
[1735601856204,4.7866,190.75,190.67,2.6271]
[1735601856405,2.6266,190.71,190.67,2.6271]
[1735601857709,2.6265,190.72,190.65,8.44307675]
[1735601859404,2.6265,190.72,190.69,2.6269]
[1735601859709,2.6263,190.74,190.69,8.44307675]
[1735601860111,2.6263,190.74,190.71,2.6265]
[1735601861204,2.6264,190.73,190.7,2.6267]
[1735601861511,8.44307675,190.73,190.63,3.12]
[1735601861716,8.44307675,190.73,190.66,8.44307675]
[1735601862405,8.44307675,190.73,190.63,3.12]
[1735601862406,2.6265,190.72,190.68,11.06997675]
[1735601862713,4.7866,190.75,190.68,8.44307675]
[1735601863111,2.6262,190.74,190.7,2.6266]
[1735601863813,8.44307675,190.74,190.68,8.44307675]
[1735601864012,2.6266,190.71,190.68,2.6269]
[1735601866014,8.44307675,190.74,190.66,8.44307675]
[1735601866213,2.6264,190.73,190.7,2.6267]
[1735601866612,2.6265,190.72,190.68,2.627]
[1735601872930,15.21260631,190.75,190.71,2.6266]
[1735601873119,7.4127,190.75,190.71,2.6266]
[1735601874930,4.7866,190.75,190.71,2.6266]
[1735601875129,2.6262,190.74,190.71,2.6266]
[1735601877232,2.6262,190.74,190.7,11.06977675]
[1735601877630,2.6262,190.74,190.7,2.6267]
[1735601880434,2.6262,190.74,190.7,11.06977675]
[1735601880931,2.4217,190.75,190.7,8.44307675]
[1735601881131,9.34880364,190.78,190.74,8.44307675]
[1735601881326,57.54746457,190.79,190.77,8.44307675]
[1735601881931,57.54746457,190.79,190.78,2.6256]
[1735601882438,2.6248,190.84,190.8,2.6253]
[1735601882629,2.6248,190.84,190.8,8.44307675]
[1735601883731,2.625,190.83,190.8,8.44307675]
[1735601885738,2.6252,190.81,190.78,8.44307675]
[1735601886137,2.6251,190.82,190.78,8.44307675]
[1735601886740,2.6252,190.81,190.78,8.44307675]
[1735601894543,2.6251,190.83,190.78,11.06857675]
[1735601895747,2.6248,190.84,190.8,11.06827675]
[1735601895944,2.3872,190.87,190.82,8.44307675]
[1735601896139,4.6371,190.91,190.84,8.44307675]
[1735601896351,4.6371,190.91,190.86,8.44307675]
[1735601896553,4.6371,190.91,190.86,11.06747675]
[1735601897349,2.2785,190.91,190.87,2.6243]
[1735601897749,2.2785,190.91,190.86,11.56307675]
[1735601898349,2.2785,190.91,190.88,2.6242]
[1735601900455,2.2785,190.91,190.88,11.06727675]
[1735601901858,4.9024,190.91,190.88,11.06727675]
[1735601903357,4.9024,190.91,190.88,2.6242]
[1735601906764,4.9024,190.91,190.87,2.6244]
[1735601909866,2.2785,190.91,190.87,2.6244]
[1735601910066,2.6241,190.9,190.87,2.6244]
[1735601910462,2.2785,190.91,190.86,8.44307675]
[1735601910664,2.6242,190.89,190.86,11.06757675]
[1735601911262,2.2785,190.91,190.86,11.06757675]
[1735601911466,2.624,190.9,190.86,11.06757675]
[1735601916669,2.6238,190.91,190.87,2.6243]
[1735601916867,8.44307675,190.93,190.86,8.44307675]
[1735601917064,2.4498,190.94,190.88,8.44307675]
[1735601917269,2.6236,190.93,190.89,2.624]
[1735601917463,2.4498,190.94,190.88,11.56307675]
[1735601917973,2.3237,190.97,190.92,8.44307675]
[1735601918773,2.3237,190.97,190.93,2.6235]
[1735601919673,2.3237,190.97,190.94,26.75883855]
[1735601919872,2.3237,190.97,190.95,26.75883855]
[1735601920172,2.3237,190.97,190.96,15.12456092]
[1735601920378,2.3237,190.97,190.94,8.44307675]
[1735601920878,2.3237,190.97,190.95,5.51908673]
[1735601921278,2.3237,190.97,190.96,5.51908673]
[1735601921776,2.3237,190.97,190.94,11.06647675]
[1735601923778,2.3237,190.97,190.95,5.34665255]
[1735601924071,2.6227,191.0,190.95,5.34665255]
[1735601924277,4.738,191.01,190.96,8.44307675]
[1735601924678,4.738,191.01,190.97,5.34904155]
[1735601925083,4.738,191.01,190.99,2.6227]
[1735601926584,4.738,191.01,190.98,2.6228]
[1735601928484,7.3605,191.01,190.98,2.6228]
[1735601928875,4.738,191.01,190.96,8.44307675]
[1735601929080,2.6229,190.98,190.95,2.6232]
[1735601929279,4.738,191.01,190.96,5.34384538]
[1735601929480,2.4938,191.0,190.96,5.34384538]
[1735601929677,2.6233,190.96,190.93,3.12]
[1735601929878,2.6233,190.96,190.94,13.89312753]
[1735601930385,8.44307675,190.98,190.92,2.6237]
[1735601930576,8.44307675,190.96,190.91,2.6238]
[1735601930986,2.6232,190.96,190.91,8.44307675]
[1735601932488,2.6232,190.96,190.93,2.6235]
[1735601932984,2.6232,190.96,190.93,11.06657675]
[1735601933178,2.6228,190.99,190.95,2.6233]
[1735601933487,2.6228,190.99,190.95,8.44307675]
[1735601934488,2.6228,190.99,190.96,2.6231]
[1735601935685,2.6228,190.99,190.95,8.44307675]
[1735601935883,2.6228,190.99,190.95,11.06627675]
[1735601936487,2.6229,190.98,190.95,8.44307675]
[1735601937088,10.93687675,191.0,190.94,3.12]
[1735601937285,2.6231,190.97,190.94,3.12]
[1735601938390,2.6232,190.96,190.94,3.12]
[1735601939285,2.6232,190.96,190.93,8.44307675]
[1735601940487,2.6232,190.96,190.93,11.06657675]
[1735601941386,2.6232,190.96,190.93,8.44307675]
[1735601943690,10.93687675,191.0,190.93,8.44307675]
[1735601943881,2.6234,190.95,190.9,2.6239]
[1735601944090,2.6234,190.95,190.91,5.3229188]
[1735601944592,8.44307675,190.98,190.9,14.18707675]
[1735601945095,2.6235,190.94,190.91,7.94727166]
[1735601945590,2.6235,190.94,190.91,2.6238]
[1735601947093,2.6236,190.93,190.9,11.06707675]
[1735601948692,8.44307675,190.98,190.9,11.06707675]
[1735601948898,2.6234,190.94,190.9,11.06707675]
[1735601950589,8.44307675,190.98,190.9,11.06707675]
[1735601950795,2.6236,190.93,190.9,8.44307675]
[1735601952296,2.6236,190.93,190.9,11.06707675]
[1735601953697,2.6234,190.95,190.9,8.44307675]
[1735601953996,2.6234,190.95,190.91,2.6238]
[1735601954593,2.6234,190.94,190.91,2.6238]
[1735601954798,60.04126457,191.0,190.92,8.44307675]
[1735601955094,2.4938,191.0,190.94,8.44307675]
[1735601955298,5.1165,191.0,190.96,8.44307675]
[1735601955494,2.4938,191.0,190.98,2.6229]
[1735601959392,2.6225,191.01,190.98,2.6229]
[1735601961501,8.44307675,191.03,190.92,6.52487263]
[1735601961704,2.6231,190.97,190.94,8.44307675]
[1735601961903,2.6231,190.97,190.95,5.33276727]
[1735601962205,8.44307675,191.03,190.96,8.44307675]
[1735601963101,2.6223,191.03,190.98,2.6229]
[1735601963305,15.79900873,191.04,190.98,2.6229]
[1735601963804,8.44307675,191.04,190.98,2.6229]
[1735601964504,2.6225,191.01,190.98,2.6229]
[1735601966106,2.6225,191.01,190.96,8.44307675]
[1735601966308,2.6225,191.01,190.97,7.95578276]
[1735601966807,2.6225,191.01,190.97,2.623]
[1735601967110,2.6224,191.02,190.99,2.6227]
[1735601969504,2.6224,191.02,190.98,11.06587675]
[1735601969704,2.6224,191.02,190.99,5.33027865]
[1735601970109,2.6224,191.02,190.98,11.06587675]
[1735601970811,2.6224,191.02,190.99,5.32976679]
[1735601971108,2.6224,191.02,190.98,11.06587675]
[1735601971907,2.6224,191.02,190.99,5.32925585]
[1735601972308,2.6224,191.02,190.98,11.06587675]
[1735601972907,2.6225,191.01,190.98,11.06587675]
[1735601973107,2.6225,191.01,190.93,9.64487263]
[1735601973108,8.44307675,191.04,190.96,11.06607675]
[1735601973509,2.6228,190.99,190.97,5.32916786]
[1735601973809,2.6228,190.99,190.96,11.06607675]
[1735601974405,2.6228,190.99,190.97,5.32934916]
[1735601974610,2.6228,190.99,190.96,11.06607675]
[1735601974812,2.6225,191.01,190.98,11.06597675]
[1735601980511,2.6222,191.03,191.0,2.6225]
[1735601981311,10.78567675,191.05,190.98,8.44307675]
[1735601981515,2.6225,191.01,190.98,11.06587675]
[1735601982012,10.78567675,191.05,190.98,8.44307675]
[1735601982714,8.44307675,191.03,190.96,8.44307675]
[1735601982907,8.44307675,191.03,190.97,13.83085983]
[1735601983310,8.44307675,191.03,190.98,5.31956147]
[1735601983506,2.6226,191.0,190.98,5.31956147]
[1735601983714,2.6226,191.0,190.97,2.623]
[1735601984312,2.6226,191.0,190.98,5.31926979]
[1735601984516,2.3426,191.05,190.98,13.76234654]
[1735601984716,2.3426,191.05,190.98,11.06587675]
[1735601984918,10.78567675,191.05,190.98,2.6228]
[1735601986521,2.6225,191.01,190.98,2.6228]
[1735601986717,10.78567675,191.05,190.97,2.623]
[1735601987321,10.78567675,191.05,190.98,5.31891969]
[1735601987522,2.6226,191.0,190.98,5.31891969]
[1735601987816,2.6226,191.0,190.97,2.623]
[1735601988025,2.3426,191.05,190.98,8.44307675]
[1735601988211,2.6225,191.01,190.98,11.06597675]
[1735601989722,2.6223,191.03,191.0,2.6226]
[1735601991417,2.3426,191.05,191.0,8.44307675]
[1735601991618,2.6221,191.04,191.01,2.6225]
[1735602000532,2.6221,191.04,191.02,5.33156041]
[1735602001029,2.6221,191.04,191.01,2.6225]
[1735602001831,2.6221,191.04,191.02,5.33177567]
[1735602002024,2.6221,191.04,191.01,2.6225]
[1735602002929,2.3426,191.05,191.02,5.33146204]
[1735602003124,2.6222,191.03,191.02,5.33146204]
[1735602003326,2.3426,191.05,190.99,2.6226]
[1735602003526,2.3426,191.05,191.0,5.33208821]
[1735602003835,8.44307675,191.01,190.94,8.44307675]
[1735602004331,2.6228,190.99,190.95,16.48774165]
[1735602004529,2.6228,190.99,190.96,5.33251602]
[1735602005029,2.6228,190.99,190.95,2.6232]
[1735602005421,2.6231,190.97,190.94,11.54307675]
[1735602005619,2.6231,190.97,190.94,8.44307675]
[1735602005829,8.44307675,191.01,190.95,5.17395053]
[1735602006028,2.623,190.98,190.95,7.79715053]
[1735602006228,2.623,190.98,190.95,2.6232]
[1735602006929,2.623,190.98,190.94,11.06647675]
[1735602007125,2.623,190.98,190.95,5.1732416]
[1735602007326,2.623,190.98,190.94,11.06647675]
[1735602007722,2.623,190.97,190.94,11.06647675]
[1735602008531,2.623,190.97,190.93,5.7236]
[1735602008730,2.623,190.97,190.94,13.61618065]
[1735602008928,2.6232,190.96,190.94,13.61618065]
[1735602009124,2.6232,190.96,190.94,8.44307675]
[1735602011533,57.54746457,191.03,190.94,8.44307675]
[1735602011729,57.54746457,191.03,190.97,8.44307675]
[1735602012637,8.44307675,191.04,190.97,8.44307675]
[1735602012837,15.80025288,191.04,190.97,8.44307675]
[1735602013230,2.6227,191.0,190.97,8.44307675]
[1735602013834,2.6222,191.03,190.99,11.06577675]
[1735602015934,2.6222,191.03,191.01,8.44307675]
[1735602019536,2.3426,191.05,191.01,8.44307675]
[1735602019840,2.6223,191.02,190.99,11.06577675]
[1735602020542,2.6222,191.03,190.99,11.06577675]
[1735602022332,2.6224,191.02,190.99,8.44307675]
[1735602025636,2.6224,191.02,190.99,11.06577675]
[1735602026838,2.3426,191.05,190.99,11.06577675]
[1735602027042,2.6222,191.03,190.99,11.06577675]
[1735602028845,2.6222,191.03,190.99,8.44307675]
[1735602029042,2.6221,191.04,191.01,11.06557675]
[1735602030141,2.6221,191.04,191.01,8.44307675]
[1735602030842,2.3426,191.05,191.01,8.44307675]
[1735602031144,2.6222,191.03,191.01,8.44307675]
[1735602032443,2.3426,191.05,190.99,11.06577675]
[1735602032444,2.6223,191.02,190.99,11.06577675]
[1735602037457,2.6224,191.02,190.99,11.06577675]
[1735602038157,2.6221,191.04,191.01,11.06547675]
[1735602038358,65.99054132,191.1,191.03,8.44307675]
[1735602038659,57.54746457,191.1,191.07,8.44307675]
[1735602038858,57.54746457,191.1,191.07,11.06467675]
[1735602039360,2.2747,191.11,191.07,11.06467675]
[1735602039552,2.6212,191.1,191.07,11.06467675]
[1735602039857,2.2747,191.11,191.07,11.06467675]
[1735602040859,2.621,191.12,191.09,11.06447675]
[1735602041159,8.44307675,191.15,191.09,11.06447675]
[1735602041658,2.6209,191.13,191.09,11.06447675]
[1735602043852,2.621,191.12,191.09,11.06447675]
[1735602051268,2.6212,191.1,191.09,8.44307675]
[1735602051466,2.6212,191.1,191.07,11.54307675]
[1735602052073,2.6211,191.12,191.09,8.44307675]
[1735602052274,2.472,191.16,191.09,8.44307675]
[1735602052275,10.91507675,191.16,191.09,8.44307675]
[1735602053370,2.621,191.12,191.09,11.06437675]
[1735602053873,2.472,191.16,191.09,11.06437675]
[1735602054165,10.91507675,191.16,191.11,11.06417675]
[1735602054366,10.91507675,191.16,191.11,8.44307675]
[1735602054367,2.472,191.16,191.11,8.44307675]
[1735602054965,2.6204,191.16,191.13,8.44307675]
[1735602056065,2.6201,191.19,191.15,2.6205]
[1735602056470,2.6201,191.19,191.15,11.06357675]
[1735602056670,2.6202,191.18,191.15,11.06357675]
[1735602057171,2.6204,191.16,191.13,14.16377675]
[1735602057370,8.44307675,191.21,191.13,14.16377675]
[1735602057971,2.6205,191.16,191.13,11.54307675]
[1735602058270,8.44307675,191.19,191.13,11.54307675]
[1735602059373,2.6207,191.14,191.11,8.44307675]
[1735602059665,8.44307675,191.17,191.11,8.44307675]
[1735602059864,2.6213,191.1,191.08,8.44307675]
[1735602060070,8.44307675,191.15,191.08,8.44307675]
[1735602060468,10.80327675,191.15,191.08,8.44307675]
[1735602061467,57.54746457,191.23,191.03,10.57521543]
[1735602061669,57.54746457,191.23,191.17,8.44307675]
[1735602062070,86.60234752,191.24,191.19,8.44307675]
[1735602062071,2.6197,191.22,191.19,8.44307675]
[1735602062263,8.44307675,191.23,191.15,3.1]
[1735602062468,57.54746457,191.24,191.15,3.1]
[1735602062469,57.54746457,191.24,191.16,8.44307675]
[1735602063474,2.6198,191.21,191.17,2.6202]
[1735602064173,2.6198,191.21,191.18,8.44307675]
[1735602064368,4.7959,191.25,191.18,8.44307675]
[1735602064669,2.6196,191.22,191.18,8.44307675]
[1735602066676,13.23897675,191.25,191.18,11.06317675]
[1735602068871,2.6196,191.23,191.18,11.06317675]
[1735602069867,2.6194,191.24,191.2,11.06297675]
[1735602070068,2.6194,191.24,191.2,8.44307675]
[1735602070270,4.7959,191.25,191.2,8.44307675]
[1735602070774,7.4152,191.25,191.21,2.6197]
[1735602071273,2.6195,191.23,191.18,11.06317675]
[1735602071467,4.7959,191.25,191.18,11.06317675]
[1735602072474,2.6196,191.22,191.18,11.06317675]
[1735602073972,2.6199,191.2,191.14,5.7207]
[1735602074170,8.44307675,191.24,191.15,8.44307675]
[1735602074975,8.44307675,191.24,191.15,11.06357675]
[1735602075575,2.6197,191.22,191.15,11.06357675]
[1735602075875,8.44307675,191.24,191.17,8.44307675]
[1735602077073,8.44307675,191.22,191.15,11.06357675]
[1735602077376,8.44307675,191.2,191.07,8.22741543]
[1735602077576,8.44307675,191.18,191.12,8.44307675]
[1735602077871,2.4016,191.17,191.12,8.44307675]
[1735602078075,2.6206,191.15,191.1,8.44307675]
[1735602078578,2.6206,191.15,191.12,8.44307675]
[1735602078873,2.6206,191.15,191.12,11.06407675]
[1735602087381,2.4016,191.17,191.12,8.44307675]
[1735602087576,2.6207,191.14,191.12,8.44307675]
[1735602088878,2.6207,191.14,191.11,2.6211]
[1735602089077,8.44307675,191.16,191.1,8.44307675]
[1735602089278,8.44307675,191.14,191.07,5.1555297]
[1735602089577,2.6215,191.09,191.06,8.44307675]
[1735602095283,2.6215,191.08,191.06,8.44307675]
[1735602095885,2.6217,191.07,191.04,11.06507675]
[1735602096083,2.6217,191.07,191.04,8.44307675]
[1735602096679,2.6218,191.06,191.04,8.44307675]
[1735602096884,8.44307675,191.08,190.98,3.1]
[1735602097180,8.44307675,191.08,191.0,8.44307675]
[1735602097380,2.6221,191.04,191.0,11.06557675]
[1735602097582,7.1364,191.09,191.0,11.06557675]
[1735602097791,15.57947675,191.09,191.02,8.44307675]
[1735602098091,2.6218,191.06,191.02,8.44307675]
[1735602098488,2.6219,191.05,191.02,8.44307675]
[1735602099686,2.6221,191.04,191.02,8.44307675]
[1735602101191,2.6221,191.04,191.0,11.06567675]
[1735602102891,2.6218,191.07,191.03,2.6222]
[1735602103191,4.8341,191.09,191.04,8.44307675]
[1735602104093,2.6216,191.08,191.04,11.06507675]
[1735602105784,4.8341,191.09,191.04,11.06507675]
[1735602105990,4.8341,191.09,191.02,8.44307675]
[1735602106994,2.6217,191.07,191.03,2.6222]
[1735602109493,5.0393,191.09,191.06,8.44307675]
[1735602109700,2.6215,191.09,191.06,8.44307675]
[1735602109900,2.6215,191.09,191.06,11.06487675]
[1735602110294,8.44307675,191.13,191.06,11.06487675]
[1735602110295,8.44307675,191.13,191.06,8.44307675]
[1735602110596,2.3164,191.14,191.08,8.44307675]
[1735602110796,2.3164,191.14,191.1,8.44307675]
[1735602111601,50.67315037,191.17,191.12,8.44307675]
[1735602112293,2.6204,191.17,191.1,13.16456595]
[1735602112599,2.2543,191.2,191.1,13.16456595]
[1735602112795,2.2543,191.2,191.11,3.1]
[1735602114499,2.6203,191.18,191.13,2.6208]
[1735602118902,2.6203,191.17,191.13,2.6208]
[1735602129305,15.41886595,191.2,191.09,3.1]
[1735602129501,15.41886595,191.2,191.01,6.1825]
[1735602129809,13.16456595,191.17,191.06,13.16456595]
[1735602130009,2.6212,191.11,191.07,2.6216]
[1735602130903,2.6212,191.11,191.08,2.6215]
[1735602131404,2.2212,191.15,191.03,13.16456595]
[1735602131709,4.5506,191.15,191.04,5.1447552]
[1735602132212,8.43172672,191.13,191.06,8.43172672]
[1735602132408,2.6214,191.09,191.06,8.43172672]
[1735602135014,2.6214,191.09,191.06,11.05352672]
[1735602137811,8.43172672,191.11,191.02,5.4433]
[1735602138016,2.6215,191.08,191.05,11.05362672]
[1735602138615,11.53172672,191.11,191.03,11.05392672]
[1735602139207,8.43172672,191.09,191.03,11.05392672]
[1735602139609,8.43172672,191.09,191.03,2.6222]
[1735602139809,2.6218,191.06,191.02,2.6223]
[1735602140212,2.6222,191.04,191.01,8.43172672]
[1735602140608,2.6222,191.04,190.99,8.43172672]
[1735602141413,2.6222,191.04,191.0,2.6226]
[1735602144117,8.43172672,191.07,191.01,8.43172672]
[1735602144321,2.622,191.05,191.02,2.6223]
[1735602144624,2.622,191.05,191.01,8.43172672]
[1735602145018,11.05342672,191.07,191.01,8.43172672]
[1735602145523,2.6217,191.07,191.01,8.43172672]
[1735602145921,2.6217,191.07,191.03,2.6222]
[1735602146917,5.5109,191.08,191.01,8.43172672]
[1735602147113,2.6218,191.06,191.02,2.6223]
[1735602149321,2.6221,191.04,191.01,8.43172672]
[1735602151727,8.43172672,191.03,190.96,2.623]
[1735602151926,8.43172672,191.03,190.96,8.43172672]
[1735602152124,8.43172672,191.01,190.94,8.43172672]
[1735602152321,2.6231,190.97,190.92,2.6236]
[1735602152521,2.6231,190.97,190.93,8.43172672]
[1735602153228,10.87762672,191.01,190.93,8.43172672]
[1735602153527,2.6232,190.96,190.93,8.43172672]
[1735602154028,2.6235,190.94,190.9,11.05562672]
[1735602154526,8.43172672,190.97,190.9,11.05562672]
[1735602154826,2.6233,190.95,190.9,11.05562672]
[1735602155331,2.6233,190.95,190.91,2.6238]
[1735602156629,8.43172672,190.97,190.9,8.43172672]
[1735602156835,2.4459,191.01,190.92,8.43172672]
[1735602157040,2.4459,191.01,190.96,8.43172672]
[1735602157740,2.6227,191.0,190.96,11.05482672]
[1735602159539,2.6228,190.99,190.96,2.6231]
[1735602159943,2.4459,191.01,190.89,2.368]
[1735602160142,2.6235,190.94,190.89,8.43172672]
[1735602160537,8.43172672,190.97,190.89,11.05572672]
[1735602161145,2.6237,190.92,190.89,8.43172672]
[1735602161541,8.43172672,190.97,190.89,8.43172672]
[1735602161741,8.43172672,190.97,190.85,3.1]
[1735602161742,2.624,190.91,190.87,8.43172672]
[1735602162241,2.6237,190.92,190.87,11.05602672]
[1735602162840,2.6238,190.91,190.87,11.05602672]
[1735602163241,8.43172672,190.95,190.87,11.05602672]
[1735602163641,2.6237,190.92,190.87,11.05602672]
[1735602164041,2.6237,190.92,190.88,2.6242]
[1735602167841,8.43172672,190.95,190.87,8.43172672]
[1735602168047,2.6239,190.91,190.87,11.05612672]
[1735602169746,2.624,190.9,190.87,8.43172672]
[1735602169949,7.0566,190.94,190.87,8.43172672]
[1735602171051,2.6237,190.92,190.88,2.6242]
[1735602172045,2.6239,190.91,190.87,11.05612672]
[1735602174138,2.6239,190.91,190.87,8.43172672]
[1735602174350,2.6239,190.91,190.88,2.6243]
[1735602179150,2.6237,190.92,190.89,11.05582672]
[1735602179650,7.0566,190.94,190.89,8.43172672]
[1735602179852,7.4255,190.94,190.91,11.05552672]
[1735602180049,7.4255,190.94,190.91,8.43172672]
[1735602180648,2.6236,190.94,190.91,8.43172672]
[1735602180953,2.6233,190.95,190.91,8.43172672]
[1735602181350,2.6233,190.95,190.91,11.05542672]
[1735602182148,2.6232,190.96,190.92,2.6237]
[1735602182453,2.6232,190.96,190.93,8.43172672]
[1735602183150,2.623,190.97,190.93,11.05522672]
[1735602183351,4.5405,190.98,190.95,8.43172672]
[1735602183550,2.2193,190.98,190.95,8.43172672]
[1735602183756,2.2193,190.98,190.95,11.05492672]
[1735602183952,3.1,191.02,190.97,8.43172672]
[1735602184255,2.6228,190.99,190.97,8.43172672]
[1735602184449,3.1,191.02,190.97,11.05472672]
[1735602184644,7.658,191.04,190.99,8.43172672]
[1735602184844,4.558,191.04,191.01,8.43172672]
[1735602185146,4.558,191.04,190.93,3.1]
[1735602185147,2.3405,191.04,191.03,8.43172672]
[1735602185349,2.6221,191.04,191.03,8.43172672]
[1735602186450,2.6222,191.03,191.01,8.43172672]
[1735602187449,2.6223,191.02,190.99,8.43172672]
[1735602187958,2.6227,191.0,190.94,2.2973]
[1735602188148,8.43172672,191.05,190.98,8.43172672]
[1735602190250,2.6225,191.01,190.98,8.43172672]
[1735602192057,2.6223,191.03,191.0,8.43172672]
[1735602192254,3.1,191.07,191.0,8.43172672]
[1735602192656,2.622,191.05,191.0,11.05432672]
[1735602193456,2.6221,191.04,191.0,11.05432672]
[1735602194959,2.6222,191.03,190.99,2.6227]
[1735602195458,2.3371,191.09,191.0,8.43172672]
[1735602195659,8.43172672,191.07,191.01,2.6225]
[1735602196157,2.6221,191.04,191.0,11.05432672]
[1735602196349,8.43172672,191.07,191.0,8.43172672]
[1735602196753,2.622,191.05,191.01,2.6224]
[1735602198861,2.6221,191.04,191.01,2.6224]
[1735602199459,2.6222,191.03,191.0,8.43172672]
[1735602199760,3.1,191.08,191.0,8.43172672]
[1735602200465,3.1,191.08,191.0,11.05422672]
[1735602201156,2.6218,191.06,191.0,11.05422672]
[1735602201358,3.1,191.08,191.0,11.05422672]
[1735602201860,3.1,191.08,190.91,8.20825721]
[1735602201861,8.43172672,191.03,190.95,2.6232]
[1735602202060,2.2987,191.02,190.95,8.43172672]
[1735602202265,2.6231,190.97,190.95,8.43172672]